bitfinex-derivatives/quotes_ETHF0:USTF0_20250902
["timestamp","ask_amount","ask_price","bid_price","bid_amount"]
[1756817388232,0.256,4281.7,4281.3,0.997]
[1756817388434,0.256,4281.7,4281.6,3.329]
[1756817388634,0.256,4281.8,4281.7,0.997]
[1756817389029,0.256,4281.8,4281.7,3.329]
[1756817389335,3.2078,4282.3,4281.8,0.997]
[1756817389528,0.256,4282.2,4281.5,0.3756]
[1756817389829,3.2078,4282.8,4282.2,3.329]
[1756817390028,3.2078,4282.3,4282.2,3.329]
[1756817390225,3.4638,4282.3,4282.2,3.329]
[1756817390424,3.2078,4283.3,4282.3,0.997]
[1756817390634,0.256,4283.2,4283.1,0.997]
[1756817390935,0.256,4283.3,4283.2,3.329]
[1756817391524,0.256,4283.3,4283.2,2.332]
[1756817391731,3.4638,4283.3,4282.6,4.2048]
[1756817391933,3.2078,4284.0,4283.2,0.997]
[1756817392136,3.2078,4284.0,4283.6,3.329]
[1756817392325,3.2078,4284.0,4283.1,0.997]
[1756817392528,3.2078,4284.0,4283.9,0.997]
[1756817392736,3.4638,4284.0,4283.9,0.997]
[1756817393036,3.4638,4284.0,4283.1,0.997]
[1756817393330,4.4139,4284.0,4283.5,0.997]
[1756817393540,0.9501,4283.9,4283.1,0.997]
[1756817393835,0.256,4283.8,4283.5,2.332]
[1756817394030,0.256,4283.7,4283.6,2.332]
[1756817394336,0.256,4283.7,4283.6,3.329]
[1756817394529,0.256,4283.7,4282.8,0.997]
[1756817394728,0.256,4283.7,4282.7,40.8]
[1756817394729,0.256,4283.7,4283.6,3.329]
[1756817395132,0.256,4283.7,4282.7,40.8]
[1756817395331,0.256,4283.7,4283.5,2.332]
[1756817395532,0.256,4283.6,4283.5,2.332]
[1756817395728,0.256,4283.6,4283.5,0.997]
[1756817395934,1.0668,4284.1,4283.6,0.997]
[1756817395935,0.256,4283.7,4283.6,0.997]
[1756817396842,0.1167,4284.1,4283.2,0.997]
[1756817397033,0.256,4284.0,4283.9,0.997]
[1756817397233,0.256,4284.0,4283.7,2.332]
[1756817397433,0.256,4284.0,4283.1,3.2078]
[1756817397641,0.9501,4283.9,4283.5,3.329]
[1756817397836,0.256,4284.0,4283.0,0.997]
[1756817397837,4.1579,4283.6,4283.0,0.997]
[1756817398042,0.9501,4283.4,4282.4,3.2078]
[1756817398338,0.256,4283.5,4282.4,3.2078]
[1756817398339,3.2078,4283.0,4282.5,0.997]
[1756817398530,0.9501,4282.8,4281.8,0.997]
[1756817398840,0.256,4282.9,4282.3,2.332]
[1756817399041,1.2061,4282.9,4282.2,2.332]
[1756817399738,0.256,4282.8,4281.7,44.0078]
[1756817399944,0.206,4282.8,4282.1,0.997]
[1756817400246,1.1561,4282.8,4282.0,0.3756]
[1756817400439,1.1561,4282.8,4282.6,2.332]
[1756817400638,0.9501,4282.7,4282.6,2.332]
[1756817400842,1.1561,4282.8,4282.6,2.329]
[1756817401142,0.206,4282.8,4281.8,0.997]
[1756817401447,0.206,4282.8,4282.4,2.329]
[1756817401747,0.206,4282.8,4282.4,0.997]
[1756817401937,0.1167,4284.1,4282.6,0.997]
[1756817402138,0.9501,4283.8,4282.6,0.997]
[1756817402335,4.1579,4283.8,4283.2,1.332]
[1756817402737,3.2078,4283.3,4283.1,0.997]
[1756817402933,3.2078,4283.3,4282.5,0.3756]
[1756817402934,1.2061,4283.2,4282.1,0.997]
[1756817403138,1.2061,4283.2,4282.5,1.332]
[1756817403541,1.2061,4283.2,4282.1,0.997]
[1756817403740,1.2061,4283.2,4282.5,1.332]
[1756817404048,1.2061,4283.2,4282.5,2.329]
[1756817404342,0.9501,4282.7,4282.5,2.329]
[1756817404546,0.9501,4282.5,4281.8,0.997]
[1756817404748,3.2078,4282.2,4281.3,0.997]
[1756817405044,0.256,4282.1,4281.6,0.997]
[1756817405242,0.256,4282.1,4282.0,0.3756]
[1756817405451,0.256,4282.1,4282.0,2.7046]
[1756817405850,3.2078,4282.2,4282.0,1.332]
[1756817406046,3.4638,4282.2,4282.1,0.997]
[1756817406246,4.4139,4282.2,4281.9,2.329]
[1756817406549,0.256,4282.2,4281.6,0.997]
[1756817406845,3.4638,4282.2,4281.3,40.8]
[1756817407043,0.9501,4282.1,4281.2,4.2048]
[1756817407239,0.54215465,4282.0,4281.2,4.2048]
[1756817407446,0.54215465,4281.9,4281.2,4.2048]
[1756817407656,0.256,4281.8,4281.2,4.2048]
[1756817408145,0.256,4281.8,4281.1,2.0]
[1756817408146,7.75034844,4281.7,4281.1,2.0]
[1756817408351,4.1579,4281.2,4281.1,2.0]
[1756817408550,4.95644844,4281.2,4281.1,2.0]
[1756817408749,8.95644844,4281.2,4281.1,2.0]
[1756817409346,8.95644844,4281.2,4281.1,0.3719049]
[1756817409553,9.92454465,4281.2,4281.1,0.3719049]
[1756817409851,8.95644844,4281.2,4281.1,0.3719049]
[1756817410351,10.1770341,4281.2,4281.1,0.3719049]
[1756817410551,8.95644844,4281.2,4281.0,0.00402859]
[1756817410746,1.7629291,4281.1,4281.0,0.00402859]
[1756817410947,5.7629291,4281.1,4281.0,0.00402859]
[1756817411140,0.54254844,4281.1,4281.0,0.00402859]
[1756817411344,0.54254844,4281.1,4281.0,0.94082859]
[1756817411650,0.79854844,4281.1,4281.0,0.94082859]
[1756817411849,0.79854844,4281.1,4281.0,0.00402859]
[1756817412050,0.79854844,4281.1,4281.0,0.94082859]
[1756817412353,0.79854844,4281.1,4281.0,0.00402859]
[1756817412950,0.54254844,4281.1,4281.0,0.00402859]
[1756817413262,0.79854844,4281.1,4281.0,0.00402859]
[1756817413455,0.79854844,4281.1,4281.0,0.94082859]
[1756817413747,0.79854844,4281.1,4281.0,1.34152859]
[1756817414150,0.79854844,4281.1,4281.0,2.67352859]
[1756817414151,0.54254844,4281.1,4281.0,2.67352859]
[1756817414350,0.256,4281.1,4281.0,2.67352859]
[1756817414953,3.2078,4281.2,4281.0,1.73672859]
[1756817415142,3.2078,4281.8,4281.6,0.9368]
[1756817415342,0.256,4281.7,4281.6,0.9368]
[1756817415946,0.256,4281.7,4281.1,0.9368]
[1756817416148,3.2078,4281.2,4281.1,0.9368]
[1756817416457,4.00347672,4281.2,4281.1,0.9368]
[1756817416656,4.00347672,4281.2,4280.0,2.0]
[1756817416846,2.33,4280.0,4278.4,0.19780001]
[1756817417049,3.2078,4278.5,4277.5,0.4007]
[1756817417348,3.2078,4278.2,4277.6,0.9368]
[1756817417551,0.258,4278.6,4278.5,0.4007]
[1756817417744,0.258,4278.7,4278.6,0.9368]
[1756817418050,33.65,4279.7,4279.0,0.4007]
[1756817418253,0.259,4279.6,4279.5,0.4007]
[1756817418456,0.259,4279.6,4279.5,1.16214332]
[1756817419554,1.00064038,4279.6,4279.5,1.16214332]
[1756817420151,1.00064038,4279.6,4279.5,2.6695]
[1756817420357,0.74164038,4279.6,4279.5,5.3375]
[1756817420551,0.45561,4279.6,4279.5,1.3375]
[1756817420753,0.45561,4279.6,4279.0,3.6085]
[1756817420754,0.9993505,4279.6,4279.0,0.4007]
[1756817420956,0.7413505,4279.5,4279.0,1.3375]
[1756817421156,0.5437405,4279.4,4279.0,0.4007]
[1756817421360,0.99927046,4279.3,4279.2,2.2688]
[1756817421555,0.99927046,4279.3,4279.2,0.9368]
[1756817421753,0.19752153,4279.3,4279.2,0.9368]
[1756817421957,0.19752153,4279.3,4279.2,6.2688]
[1756817422259,0.19754065,4279.3,4279.2,2.2688]
[1756817422754,0.19754065,4279.3,4279.2,4.9368]
[1756817422959,3.2078,4280.4,4279.3,2.2688]
[1756817423162,0.80532568,4280.3,4279.3,0.9368]
[1756817423358,0.54732568,4280.2,4279.3,0.9368]
[1756817423558,0.1168,4280.1,4279.8,2.2688]
[1756817423759,0.80532568,4280.0,4279.9,0.9368]
[1756817423958,0.80532568,4280.0,4279.0,0.4007]
[1756817424160,3.75512568,4279.9,4279.7,1.332]
[1756817424361,0.54732568,4279.8,4279.3,1.332]
[1756817424657,0.258,4279.7,4279.3,1.332]
[1756817424851,0.54732568,4279.6,4279.5,0.9368]
[1756817425052,0.54732568,4279.6,4278.8,0.9368]
[1756817425260,0.54732568,4279.6,4276.4,33.661]
[1756817425261,3.2078,4279.2,4279.1,0.9368]
[1756817425461,0.80532568,4279.2,4279.1,0.9368]
[1756817425659,0.80573945,4279.2,4279.1,0.9368]
[1756817426258,0.80573945,4279.2,4278.6,0.9368]
[1756817426454,3.75553945,4279.1,4278.9,1.332]
[1756817426658,0.54773945,4279.0,4278.7,1.332]
[1756817426863,0.54773945,4279.0,4278.1,0.9368]
[1756817426864,0.8889,4278.9,4278.1,0.9368]
[1756817427063,3.2078,4278.6,4278.3,1.332]
[1756817427264,0.54773945,4278.5,4278.4,2.2688]
[1756817427463,0.80573945,4278.5,4278.4,0.9368]
[1756817427664,0.80573945,4278.5,4278.4,2.2688]
[1756817428368,0.80673945,4278.5,4278.4,2.2688]
[1756817428771,0.54773945,4278.5,4278.4,0.9368]
[1756817429063,0.80573945,4278.5,4278.4,2.2688]
[1756817429467,0.259,4278.5,4278.4,2.2688]
[1756817429857,0.259,4278.5,4278.4,0.9368]
[1756817430062,0.80745315,4278.5,4278.4,0.9368]
[1756817430264,0.80745315,4278.5,4277.5,3.6085]
[1756817430265,0.42068,4278.1,4277.5,3.6085]
[1756817430468,0.42073,4277.6,4277.5,3.6085]
[1756817430669,1.05175,4278.0,4277.5,3.6085]
[1756817430970,1.0517,4278.1,4277.9,1.332]
[1756817431168,1.9885,4277.6,4277.4,3.2078]
[1756817431368,6.202,4277.1,4274.7,1.2078]
[1756817431559,0.1343,4275.1,4274.7,0.77378451]
[1756817431780,0.83231973,4275.0,4274.7,0.77378451]
[1756817432068,3.2078,4274.8,4274.7,1e-08]
[1756817432264,3.76611973,4274.8,4274.7,0.93680001]
[1756817432664,3.2078,4274.8,4274.7,0.93680001]
[1756817432858,3.2078,4275.8,4274.7,4.93680001]
[1756817433070,3.2078,4275.3,4274.8,0.274]
[1756817433270,0.1343,4276.4,4274.9,0.9368]
[1756817433271,3.2078,4275.9,4274.9,0.9368]
[1756817433462,0.55730726,4275.8,4275.0,0.275]
[1756817433671,0.55730726,4275.7,4274.9,0.9368]
[1756817433970,1.49810726,4275.6,4275.1,0.275]
[1756817434172,0.55730726,4275.5,4275.2,0.9368]
[1756817434374,0.9408,4275.8,4275.2,0.9368]
[1756817434564,0.9408,4275.6,4275.2,0.9368]
[1756817434764,0.55711035,4275.5,4275.1,0.9368]
[1756817434965,0.24058241,4275.4,4275.1,0.9368]
[1756817435164,4.1486,4276.4,4274.8,0.9368]
[1756817435367,3.2078,4275.6,4275.0,0.9368]
[1756817435770,3.2078,4275.6,4274.7,3.20780001]
[1756817435966,0.9408,4275.5,4274.7,3.20780001]
[1756817436272,3.2078,4274.8,4274.7,1e-08]
[1756817437269,3.2078,4275.5,4274.7,4.00000001]
[1756817437571,0.9408,4275.9,4274.8,0.9368]
[1756817437868,1.05236,4275.4,4274.8,0.9368]
[1756817438672,1.05236,4275.4,4275.0,0.9368]
[1756817438867,1.05236,4275.4,4275.1,0.274]
[1756817439070,1.0503,4275.3,4274.7,1e-08]
[1756817439283,1.0503,4275.2,4274.7,0.27400001]
[1756817439567,1.0503,4275.2,4274.8,1.0495]
[1756817439972,1.05236,4275.4,4274.7,0.27400001]
[1756817440273,1.05236,4275.4,4274.7,1e-08]
[1756817440468,3.2078,4274.8,4274.7,1.04950001]
[1756817440970,1.0503,4274.7,4274.6,0.274]
[1756817441161,3.2078,4274.8,4274.6,0.274]
[1756817441364,1.0503,4275.3,4274.6,4.274]
[1756817441666,3.2078,4275.5,4274.6,0.274]
[1756817442277,3.2078,4276.1,4274.9,3.2078]
[1756817442476,3.2078,4276.1,4275.0,0.4007]
[1756817442674,3.2078,4276.1,4275.5,3.2078]
[1756817442872,3.2078,4276.8,4276.1,1.0495]
[1756817443076,3.2078,4277.3,4276.6,1.0495]
[1756817443278,3.2078,4277.0,4276.3,0.273]
[1756817443478,4.2581,4277.0,4276.4,40.8]
[1756817443669,3.2078,4276.6,4276.3,0.274]
[1756817443870,4.2581,4276.6,4275.5,4.2573]
[1756817444175,4.2581,4276.6,4275.6,41.073]
[1756817444373,3.2078,4276.6,4275.7,1.0495]
[1756817444674,0.1168,4277.0,4276.2,1.0495]
[1756817444975,0.1168,4277.0,4276.6,3.2078]
[1756817445175,4.2581,4277.9,4276.6,3.2078]
[1756817445176,3.2078,4277.9,4276.9,1.0495]
[1756817445374,3.2078,4277.9,4277.2,4.2573]
[1756817445782,0.42076,4277.3,4277.2,4.2573]
[1756817446473,1.05182,4277.7,4277.2,7.2078]
[1756817446673,1.05179,4277.8,4277.2,7.2078]
[1756817446880,3.2078,4278.6,4277.7,3.2078]
[1756817447075,0.21365751,4278.5,4277.8,0.273]
[1756817447275,11.56566,4278.9,4277.8,0.273]
[1756817447276,0.21365751,4278.4,4277.8,0.273]
[1756817447576,0.21365751,4278.3,4277.8,0.273]
[1756817447781,0.21365751,4278.2,4277.8,0.273]
[1756817448082,3.2078,4279.1,4278.2,3.2078]
[1756817448384,0.21366732,4279.0,4278.3,0.273]
[1756817448579,0.21366732,4278.9,4278.3,0.273]
[1756817448776,0.4235,4280.0,4278.8,3.2078]
[1756817448976,0.21370457,4279.9,4279.4,3.2078]
[1756817449279,0.21370457,4279.8,4279.5,0.272]
[1756817449484,3.2078,4280.7,4279.5,0.272]
[1756817449485,0.21366377,4279.7,4279.6,0.272]
[1756817450082,0.21366377,4279.7,4279.5,40.8]
[1756817450284,1.0503,4280.4,4279.6,0.272]
[1756817450579,0.21355096,4280.3,4279.6,0.272]
[1756817450887,0.21355096,4280.2,4279.6,0.272]
[1756817451184,1.25366726,4280.1,4279.6,0.272]
[1756817451380,3.2078,4280.7,4279.7,0.272]
[1756817451381,0.4235,4280.0,4279.7,0.272]
[1756817452079,0.4235,4281.0,4279.9,3.2078]
[1756817452080,1.4738,4281.0,4279.9,3.2078]
[1756817452279,3.2078,4281.3,4279.9,3.2078]
[1756817452479,3.6313,4282.0,4280.5,3.2078]
[1756817452788,3.2078,4281.8,4280.5,36.8848]
[1756817453087,1.0503,4281.7,4280.5,36.8848]
[1756817453287,1.0503,4281.7,4280.6,0.271]
[1756817453888,1.05089,4281.5,4280.6,0.271]
[1756817454084,1.0503,4281.7,4280.6,0.271]
[1756817454306,0.42032,4281.8,4281.6,3.2078]
[1756817454485,0.42031,4281.9,4281.7,0.271]
[1756817454790,0.42031,4281.9,4281.8,0.271]
[1756817454980,0.42031,4281.9,4281.8,40.8]
[1756817456284,0.42033,4281.7,4281.6,3.2078]
[1756817456483,0.42033,4281.7,4281.6,3.4788]
[1756817456685,0.42033,4281.7,4281.6,2.68531]
[1756817456885,1.47063,4281.7,4281.6,2.95531]
[1756817457285,0.42033,4281.7,4281.6,47.75531]
[1756817458190,1.0503,4282.9,4281.6,47.75531]
[1756817458487,1.4738,4283.0,4282.4,3.2078]
[1756817458687,0.4235,4283.0,4282.5,0.27]
[1756817459195,1.0503,4282.9,4282.5,0.27]
[1756817459386,1.4738,4283.0,4282.4,3.2078]
[1756817459587,1.0503,4282.9,4282.6,0.27]
[1756817459788,0.4235,4283.0,4282.6,0.27]
[1756817460183,0.4235,4283.5,4282.6,0.27]
[1756817460389,0.4235,4284.5,4283.0,3.2078]
[1756817460390,1.0503,4283.8,4283.0,3.2078]
[1756817460595,1.0503,4283.8,4283.1,0.27]
[1756817460795,3.6313,4284.0,4283.0,3.2078]
[1756817460796,0.4235,4283.5,4283.0,3.2078]
[1756817460990,1.0503,4283.4,4283.2,0.27]
[1756817461294,0.4235,4284.0,4283.3,0.27]
[1756817461484,0.4235,4284.0,4282.8,3.2078]
[1756817461485,0.4235,4284.0,4283.4,0.27]
[1756817461688,0.4235,4284.0,4283.5,0.27]
[1756817461888,1.0503,4283.9,4283.5,0.27]
[1756817462195,3.2078,4284.2,4283.6,0.27]
[1756817462393,3.2078,4284.2,4283.7,0.27]
[1756817462394,1.0503,4284.1,4283.7,0.27]
[1756817462695,3.2078,4285.2,4283.8,44.0078]
[1756817462892,3.2078,4285.2,4284.3,3.2078]
[1756817463191,3.2078,4285.2,4284.4,0.269]
[1756817463393,0.4235,4284.5,4284.4,0.269]
[1756817463597,1.0503,4284.4,4284.3,3.2078]
[1756817463792,5.0503,4284.4,4284.3,3.4768]
[1756817463994,5.0503,4284.4,4284.3,0.269]
[1756817464193,1.0503,4284.4,4284.0,33.649]
[1756817464394,1.0503,4284.4,4284.1,0.269]
[1756817464692,1.0503,4284.4,4284.2,0.269]
[1756817464900,1.0503,4284.4,4284.0,36.8568]
[1756817465099,0.4235,4284.5,4284.1,0.269]
[1756817465399,1.0503,4284.4,4284.1,0.269]
[1756817465584,1.0503,4284.4,4284.0,33.649]
[1756817465585,1.0503,4284.4,4284.2,0.269]
[1756817466489,1.0503,4284.9,4284.2,0.269]
[1756817466695,1.0503,4284.9,4284.5,3.2078]
[1756817467201,1.0503,4284.9,4284.6,0.269]
[1756817467496,0.4235,4285.0,4284.6,0.269]
[1756817467687,0.4235,4285.0,4284.5,3.2078]
[1756817467890,0.4235,4285.0,4284.6,0.268]
[1756817467891,1.0503,4284.9,4284.6,0.268]
[1756817468298,1.0503,4284.9,4284.7,40.8]
[1756817468490,0.4235,4285.0,4284.7,40.8]
[1756817468699,0.4235,4285.0,4284.8,0.268]
[1756817469002,3.6313,4285.0,4284.9,0.268]
[1756817469496,1.5564,4285.0,4284.9,0.268]
[1756817469802,0.4235,4285.0,4284.9,0.268]
[1756817470100,0.4235,4285.0,4284.7,40.8]
[1756817470302,3.6313,4285.5,4284.8,0.268]
[1756817470704,0.4235,4285.5,4284.8,0.268]
[1756817470995,0.4235,4285.5,4285.1,3.2078]
[1756817471200,1.1329,4285.4,4285.2,0.268]
[1756817471392,1.1329,4285.9,4285.2,0.268]
[1756817472204,4.3407,4286.6,4285.6,3.2078]
[1756817472391,1.1329,4286.6,4285.7,0.268]
[1756817472703,1.1329,4286.9,4286.1,3.2078]
[1756817472892,0.4141,4286.5,4286.2,0.268]
[1756817473092,0.4141,4286.5,4286.1,3.2078]
[1756817473398,1.1329,4286.4,4286.2,0.268]
[1756817473592,1.1329,4286.9,4286.2,0.268]
[1756817473896,1.1329,4286.4,4286.3,0.268]
[1756817474096,1.1329,4286.4,4286.3,41.068]
[1756817474995,1.547,4287.0,4286.3,41.068]
[1756817475898,0.4141,4287.5,4286.8,3.2078]
[1756817476095,1.547,4287.5,4286.9,0.267]
[1756817476295,3.2078,4287.8,4286.9,0.267]
[1756817476491,0.4141,4287.5,4287.0,0.267]
[1756817476810,1.1329,4287.4,4287.3,3.2078]
[1756817477003,1.547,4288.0,4287.3,3.4748]
[1756817477496,1.547,4288.0,4287.9,3.2078]
[1756817477689,1.547,4288.0,4287.3,3.2078]
[1756817477690,1.1329,4287.9,4287.3,3.2078]
[1756817477892,0.4141,4288.0,4287.1,3.2078]
[1756817478090,1.1329,4287.4,4287.1,3.2078]
[1756817478303,0.4141,4287.5,4287.2,0.268]
[1756817478495,1.1329,4287.4,4287.3,0.268]
[1756817479096,1.1329,4287.3,4286.7,40.8]
[1756817479301,1.1329,4287.4,4287.2,3.2078]
[1756817479502,0.4141,4287.5,4287.2,3.2078]
[1756817479701,1.1329,4287.4,4287.3,0.268]
[1756817480098,0.4141,4287.5,4286.7,44.0078]
[1756817480308,0.4141,4287.0,4286.8,0.268]
[1756817480499,1.547,4287.0,4286.9,0.268]
[1756817480901,0.4141,4287.5,4286.9,4.268]
[1756817481102,0.4141,4287.5,4286.9,0.268]
[1756817481402,0.4141,4287.5,4287.0,0.267]
[1756817481605,0.4141,4287.5,4287.1,0.267]
[1756817481795,1.1329,4287.4,4287.2,3.2078]
[1756817482001,1.547,4288.0,4287.2,3.2078]
[1756817482197,3.2078,4288.8,4287.7,3.2078]
[1756817482401,3.2078,4288.8,4287.8,0.267]
[1756817482402,1.1329,4288.4,4287.8,0.267]
[1756817482800,1.1329,4288.4,4287.7,3.2078]
[1756817482801,1.1329,4287.9,4287.7,3.2078]
[1756817482998,1.1329,4287.9,4287.8,0.267]
[1756817483208,1.1329,4288.4,4287.8,0.267]
[1756817483602,1.1329,4288.4,4287.9,40.8]
[1756817483908,1.1329,4288.5,4288.3,3.2078]
[1756817484208,3.2078,4289.3,4288.4,0.267]
[1756817484408,1.1329,4289.1,4288.4,0.267]
[1756817484807,0.4141,4289.0,4288.3,3.2078]
[1756817485110,1.1329,4289.1,4288.4,0.267]
[1756817485309,1.1329,4289.1,4288.8,3.2078]
[1756817485508,1.1329,4289.7,4288.9,0.267]
[1756817485704,0.4141,4289.5,4289.4,3.2078]
[1756817485906,1.547,4289.5,4289.4,3.4748]
[1756817486106,1.547,4289.5,4289.0,40.8]
[1756817486302,1.547,4289.5,4289.1,0.267]
[1756817486303,0.4141,4289.5,4289.1,0.267]
[1756817486608,1.1329,4289.4,4289.2,0.267]
[1756817486905,0.5630918,4289.3,4289.0,41.067]
[1756817487108,1.1329,4289.1,4289.0,41.067]
[1756817488912,1.1329,4289.1,4289.0,40.8]
[1756817489113,0.4141,4288.5,4288.1,3.2078]
[1756817489316,1.1329,4288.4,4288.2,0.266]
[1756817489612,1.1329,4287.9,4287.6,40.8]
[1756817489914,1.1329,4287.8,4287.6,40.8]
[1756817490212,0.4141,4287.5,4287.2,33.609]
[1756817490417,1.1329,4287.4,4287.3,0.267]
[1756817490613,1.1329,4287.4,4287.3,41.067]
[1756817491010,1.1329,4287.4,4287.3,0.266]
[1756817491312,1.69718909,4287.4,4287.3,0.266]
[1756817491517,0.4141,4286.5,4286.4,3.2078]
[1756817491716,1.547,4286.5,4286.4,3.4738]
[1756817492618,1.1329,4285.9,4285.8,3.2078]
[1756817492812,1.1329,4285.9,4285.8,3.4738]
[1756817493017,1.1329,4285.9,4285.4,33.598]
[1756817493215,1.547,4285.5,4285.4,33.598]
[1756817493422,1.547,4285.5,4285.4,33.864]
[1756817493617,1.547,4285.5,4285.2,3.2078]
[1756817493618,1.1329,4285.4,4285.2,3.2078]
[1756817493821,1.1329,4285.4,4285.3,0.266]
[1756817494023,0.4141,4285.5,4285.2,3.2078]
[1756817494226,1.1329,4285.4,4285.3,0.266]
[1756817494525,1.1329,4285.3,4285.2,3.2078]
[1756817494725,1.1329,4285.3,4285.2,3.4738]
[1756817495019,0.4141,4284.5,4284.3,3.2078]
[1756817495222,1.1329,4284.4,4284.3,3.2078]
[1756817495615,1.1329,4284.4,4284.3,3.4738]
[1756817495820,1.1329,4284.4,4284.3,44.2738]
[1756817496627,1.547,4285.0,4284.3,44.2738]
[1756817496824,0.56486426,4284.9,4284.3,44.0078]
[1756817497019,0.4141,4285.0,4284.4,0.266]
[1756817497222,0.4141,4285.0,4284.5,0.266]
[1756817497422,0.4141,4285.0,4284.7,3.2078]
[1756817497630,1.1329,4284.9,4284.8,0.266]
[1756817497829,0.4141,4285.0,4284.8,0.265]
[1756817498130,1.1329,4284.8,4284.7,3.2078]
[1756817498429,1.69787488,4284.8,4284.7,3.4728]
[1756817498826,4.3407,4285.3,4284.7,3.4728]
[1756817499028,0.56504357,4285.2,4284.7,3.4728]
[1756817499326,3.2078,4285.3,4284.8,0.23337]
[1756817499525,1.4698,4286.0,4284.8,0.23337]
[1756817499526,1.4698,4286.0,4285.2,3.2078]
[1756817499729,0.5653077,4285.9,4285.3,0.265]
[1756817499929,0.5653077,4285.8,4285.4,0.265]
[1756817500135,0.4141,4286.5,4285.7,3.2078]
[1756817500324,0.4141,4286.5,4285.8,0.265]
[1756817500325,0.56536063,4286.4,4285.8,0.265]
[1756817500530,0.56536063,4286.3,4285.9,0.265]
[1756817500732,1.4698,4286.5,4286.0,40.8]
[1756817500929,1.62137261,4286.4,4286.1,0.265]
[1756817501135,1.0557,4286.4,4286.0,40.8]
[1756817501335,0.4141,4286.5,4286.2,0.265]
[1756817501635,1.62145978,4286.4,4286.3,0.265]
[1756817501829,1.0557,4286.3,4286.0,40.8]
[1756817502030,0.4141,4286.5,4286.0,40.8]
[1756817502335,1.0557,4286.3,4286.1,0.265]
[1756817502532,1.4698,4286.5,4286.1,0.265]
[1756817502731,4.6912,4287.0,4286.2,3.2078]
[1756817502925,0.56580939,4286.9,4286.3,0.265]
[1756817503131,1.4834,4287.0,4286.3,0.265]
[1756817504125,1.0557,4286.9,4286.3,0.265]
[1756817504525,0.4277,4286.5,4286.1,3.2078]
[1756817504828,0.4277,4286.5,4286.0,40.8]
[1756817504829,1.0557,4286.4,4286.2,0.265]
[1756817505034,0.4277,4286.5,4286.0,40.8]
[1756817505232,1.0557,4286.4,4286.0,40.8]
[1756817505630,1.0557,4286.4,4286.1,0.264]
[1756817505935,0.4277,4286.5,4286.1,0.264]
[1756817506133,1.0557,4286.4,4286.1,0.264]
[1756817506436,0.4277,4286.5,4286.1,0.264]
[1756817506632,0.4277,4286.5,4286.2,0.264]
[1756817507134,1.0557,4286.4,4286.2,0.264]
[1756817507334,0.4277,4286.5,4286.0,40.8]
[1756817507530,0.4277,4286.5,4286.1,0.264]
[1756817507939,1.0557,4286.4,4286.1,0.264]
[1756817508139,0.4277,4286.5,4286.1,0.264]
[1756817508341,1.0557,4286.4,4286.1,0.264]
[1756817508526,0.4277,4286.5,4286.0,40.8]
[1756817508730,0.4277,4286.5,4286.1,0.264]
[1756817509139,1.0557,4286.4,4286.1,0.264]
[1756817509733,0.4277,4286.5,4286.1,0.264]
[1756817509938,0.4277,4286.5,4286.0,40.8]
[1756817510231,1.0557,4286.4,4286.1,0.263]
[1756817510440,1.0557,4286.8,4286.3,3.2078]
[1756817510635,0.4277,4287.0,4286.4,0.263]
[1756817510842,1.0557,4286.9,4286.5,0.263]
[1756817511027,0.4277,4287.0,4286.5,0.263]
[1756817511233,1.0557,4286.9,4286.5,0.263]
[1756817512539,0.4277,4287.0,4286.5,0.263]
[1756817512736,1.0557,4286.9,4286.3,3.2078]
[1756817512940,1.0557,4286.9,4286.4,0.263]
[1756817513631,0.4277,4287.0,4286.4,0.263]
[1756817514034,1.0557,4287.2,4286.4,0.263]
[1756817514233,0.4141,4287.5,4286.9,3.2078]
[1756817514442,1.0557,4287.9,4287.0,0.263]
[1756817514736,1.0557,4288.1,4287.4,3.2078]
[1756817515035,1.0557,4287.9,4287.5,41.063]
[1756817515231,3.2078,4288.3,4287.5,41.063]
[1756817515438,3.2078,4288.3,4287.6,0.23321]
[1756817515635,1.0557,4288.2,4287.5,41.063]
[1756817515838,0.4277,4288.0,4287.6,0.263]
[1756817516039,3.2078,4288.3,4287.6,0.49621]
[1756817516235,3.2078,4288.3,4287.5,40.8]
[1756817516438,1.4834,4288.5,4287.6,0.262]
[1756817516641,1.4834,4288.5,4287.9,3.2078]
[1756817516938,1.0557,4288.4,4288.0,0.262]
[1756817517132,0.4277,4288.0,4287.9,3.2078]
[1756817517333,1.0557,4288.4,4287.6,0.262]
[1756817517538,1.0557,4288.4,4287.6,0.4952]
[1756817517841,1.0557,4288.4,4287.5,44.0078]
[1756817518041,1.0557,4288.4,4287.6,0.265]
[1756817519045,1.0557,4288.4,4287.7,0.265]
[1756817519238,0.4277,4288.0,4287.8,0.265]
[1756817519438,0.4277,4288.0,4287.5,44.0078]
[1756817519633,0.4277,4288.0,4287.6,0.265]
[1756817520144,1.0557,4287.9,4287.6,0.265]
[1756817520339,1.0557,4288.4,4287.6,0.265]
[1756817520544,1.0557,4288.4,4288.0,3.2078]